bitfinex/quotes_BTCUSD_20240906
["timestamp","ask_amount","ask_price","bid_price","bid_amount"]
[1725594298212,5.06656909,56876.0,56875.0,0.002632]
[1725594298477,5.06659582,56876.0,56875.0,0.002632]
[1725594298695,4.97149582,56876.0,56875.0,0.002632]
[1725594299377,4.97231282,56876.0,56875.0,0.002632]
[1725594299772,4.91971159,56876.0,56875.0,0.002632]
[1725594300202,4.91971159,56876.0,56875.0,0.122232]
[1725594301573,5.01481159,56876.0,56875.0,0.002632]
[1725594302315,5.17162309,56876.0,56875.0,0.002632]
[1725594302535,5.14946822,56876.0,56875.0,0.002632]
[1725594303064,5.14746822,56876.0,56875.0,0.002632]
[1725594303245,5.0971124,56876.0,56875.0,0.002632]
[1725594303931,5.25270781,56876.0,56875.0,0.002632]
[1725594304151,2.404929,56872.0,56871.0,1e-06]
[1725594304400,4.81992284,56872.0,56871.0,1e-06]
[1725594304624,4.89817866,56872.0,56871.0,1e-06]
[1725594304867,4.67014292,56872.0,56871.0,1e-06]
[1725594305099,4.54647777,56872.0,56871.0,1e-06]
[1725594305314,4.46753971,56872.0,56871.0,0.096401]
[1725594305555,4.12087371,56872.0,56871.0,0.217001]
[1725594305763,4.19982578,56872.0,56871.0,0.217001]
[1725594305977,4.19982578,56872.0,56871.0,0.218001]
[1725594305978,4.20682578,56872.0,56871.0,0.218001]
[1725594306242,4.12787371,56872.0,56871.0,0.218001]
[1725594306686,4.12087371,56872.0,56871.0,0.217001]
[1725594307109,4.12487371,56872.0,56871.0,0.217001]
[1725594307322,4.12487371,56872.0,56871.0,0.216001]
[1725594307323,4.11987371,56872.0,56871.0,0.216001]
[1725594307775,4.12287371,56872.0,56871.0,0.216001]
[1725594308202,4.17251317,56872.0,56871.0,0.216001]
[1725594308425,4.17351317,56872.0,56871.0,0.216001]
[1725594308925,4.12087371,56872.0,56871.0,0.216001]
[1725594309361,4.19983613,56872.0,56871.0,0.216001]
[1725594309776,4.19583613,56872.0,56871.0,0.216001]
[1725594310313,3.82584786,56872.0,56871.0,0.222001]
[1725594310554,2.740106,56872.0,56871.0,0.397837]
[1725594310756,1.78409,56872.0,56871.0,0.222001]
[1725594310987,1.769526,56872.0,56871.0,0.24711306]
[1725594311197,1.771526,56872.0,56871.0,0.222001]
[1725594311424,1.771526,56872.0,56871.0,0.24711306]
[1725594311425,2.298025,56872.0,56871.0,0.24711306]
[1725594311633,1.945359,56872.0,56871.0,0.25211306]
[1725594312101,2.045359,56872.0,56871.0,0.25211306]
[1725594312339,2.045359,56872.0,56871.0,0.231001]
[1725594312582,2.748691,56872.0,56871.0,0.231001]
[1725594312820,2.397025,56872.0,56871.0,0.25611144]
[1725594313045,2.748691,56872.0,56871.0,0.231001]
[1725594313942,2.77625884,56872.0,56871.0,0.231001]
[1725594314643,2.42459284,56872.0,56871.0,0.231001]
[1725594315707,2.77625884,56872.0,56871.0,0.231001]
[1725594315919,2.42459284,56872.0,56871.0,0.231001]
[1725594316372,2.77625884,56872.0,56871.0,0.231001]
[1725594316844,2.42459284,56872.0,56871.0,0.231001]
[1725594317287,2.77625884,56872.0,56871.0,0.231001]
[1725594319095,2.748691,56872.0,56871.0,0.231001]
[1725594321232,2.397025,56872.0,56871.0,0.231001]
[1725594321948,2.848691,56872.0,56871.0,0.231001]
[1725594322159,2.876259,56872.0,56871.0,0.231001]
[1725594322375,3.846839,56872.0,56871.0,0.231001]
[1725594323018,3.495173,56872.0,56871.0,0.231001]
[1725594323504,3.846839,56872.0,56871.0,0.231001]
[1725594323729,3.49599,56872.0,56871.0,0.231001]
[1725594323924,3.788467,56872.0,56871.0,0.231001]
[1725594324616,3.436801,56872.0,56871.0,0.231001]
[1725594325079,3.788467,56872.0,56871.0,0.231001]
[1725594325542,4.140133,56872.0,56871.0,0.225001]
[1725594325780,4.140133,56872.0,56871.0,0.134601]
[1725594326874,4.140133,56872.0,56871.0,0.128601]
[1725594327101,4.140133,56872.0,56871.0,0.134601]
[1725594328887,3.788467,56872.0,56871.0,0.237801]
[1725594329134,3.788467,56872.0,56871.0,0.413637]
[1725594329135,0.94085,56872.0,56871.0,0.413637]
[1725594329607,0.94085,56872.0,56871.0,0.79041773]
[1725594329833,0.94085,56872.0,56871.0,0.43874473]
[1725594330286,0.565336,56872.0,56871.0,0.79041773]
[1725594330510,0.418884,56872.0,56871.0,0.79041773]
[1725594330755,0.418884,56872.0,56871.0,0.26290873]
[1725594330986,0.418884,56872.0,56871.0,0.43874473]
[1725594331426,0.418884,56872.0,56871.0,0.26290873]
[1725594331680,0.418884,56872.0,56871.0,0.43874473]
[1725594331894,0.418884,56872.0,56871.0,0.79041773]
[1725594334076,0.418884,56872.0,56871.0,1.14209073]
[1725594340527,0.13402807,56872.0,56871.0,1.14209073]
[1725594340748,0.000817,56876.0,56871.0,1.14209073]
[1725594340749,0.52744,56879.0,56878.0,0.006]
[1725594340951,0.62744,56879.0,56878.0,0.2413]
[1725594341199,0.62744,56879.0,56878.0,0.26639349]
[1725594341438,3.049479,56879.0,56878.0,0.2413]
[1725594342100,2.82292201,56879.0,56878.0,0.2413]
[1725594342331,2.81135101,56879.0,56878.0,0.2413]
[1725594342568,2.81535101,56879.0,56878.0,0.2413]
[1725594346858,0.66200501,56879.0,56878.0,0.2413]
[1725594347072,2.97426801,56879.0,56878.0,0.2413]
[1725594347311,2.92428901,56879.0,56878.0,0.2413]
[1725594347955,3.27591801,56879.0,56878.0,0.2413]
[1725594348846,3.21561001,56879.0,56878.0,0.2413]
[1725594349089,3.188045,56879.0,56878.0,0.2413]
[1725594352407,3.21561016,56879.0,56878.0,0.2413]
[1725594354376,2.10848716,56879.0,56878.0,0.2413]
[1725594356281,2.10848116,56879.0,56878.0,0.2413]
[1725594356571,2.53919541,56879.0,56878.0,0.2413]
[1725594356997,2.18757241,56879.0,56878.0,0.2413]
[1725594357555,2.53919541,56879.0,56878.0,0.2413]
[1725594358500,2.18757241,56879.0,56878.0,0.2413]
[1725594358736,2.18357241,56879.0,56878.0,0.006]
[1725594358958,2.12967538,56879.0,56878.0,0.006]
[1725594359186,2.12667538,56879.0,56878.0,0.01]
[1725594359394,2.50586424,56879.0,56878.0,0.006]
[1725594359592,2.50686424,56879.0,56878.0,0.011]
[1725594359741,2.50786424,56879.0,56878.0,0.018]
[1725594360028,2.50686424,56879.0,56878.0,0.013]
[1725594360195,2.45410486,56879.0,56878.0,0.013]
[1725594360470,2.45410486,56879.0,56878.0,0.019]
[1725594360471,2.45510486,56879.0,56878.0,0.019]
[1725594361276,2.45510486,56879.0,56878.0,0.020632]
[1725594361526,1.47604786,56879.0,56878.0,0.591261]
[1725594361784,0.002817,56879.0,56878.0,2.39749072]
[1725594362013,0.002817,56879.0,56878.0,2.74911972]
[1725594362719,0.001817,56879.0,56878.0,2.74311972]
[1725594363186,0.001817,56879.0,56878.0,2.75411972]
[1725594364258,0.000817,56879.0,56878.0,2.74811972]
[1725594364466,0.001817,56879.0,56878.0,3.11274872]
[1725594364804,0.000817,56879.0,56878.0,3.09974872]
[1725594365231,0.001817,56879.0,56878.0,3.11274872]
[1725594365397,0.000817,56879.0,56878.0,3.09974872]
[1725594365839,0.001817,56879.0,56878.0,3.11374872]
[1725594366140,0.001817,56879.0,56878.0,3.12774872]
[1725594366632,0.001817,56879.0,56878.0,3.11374872]
[1725594367096,0.001817,56879.0,56878.0,3.12774872]
[1725594371613,0.001817,56879.0,56878.0,2.77611972]
[1725594373171,0.001817,56879.0,56878.0,2.77411972]
[1725594375421,0.001817,56879.0,56878.0,2.77611972]
[1725594381434,0.001817,56879.0,56878.0,2.77411972]
[1725594387829,0.32853128,56893.0,56892.0,0.006]
[1725594388061,2.92633828,56893.0,56892.0,0.006]
[1725594388481,2.95389662,56893.0,56892.0,0.03325008]
[1725594388696,2.95389662,56893.0,56892.0,0.006]
[1725594388916,2.95389662,56893.0,56892.0,0.03325008]
[1725594389125,2.95389662,56893.0,56892.0,0.011]
[1725594389382,2.95489662,56893.0,56892.0,0.04425008]
[1725594390492,2.91922462,56893.0,56892.0,0.04425008]
[1725594390912,3.01962462,56893.0,56892.0,0.04425008]
[1725594392277,2.47881562,56893.0,56892.0,0.04425008]
[1725594392500,1.77754634,56893.0,56892.0,0.04425008]
[1725594392709,0.97064134,56893.0,56892.0,0.04425008]
[1725594392936,0.79487334,56893.0,56892.0,0.14185008]
[1725594393171,0.767315,56893.0,56892.0,0.14185008]
[1725594393618,0.943083,56893.0,56892.0,0.04425008]
[1725594394268,1.29462,56893.0,56892.0,0.04425008]
[1725594395903,2.28064982,56893.0,56892.0,0.03825008]
[1725594396082,2.38064982,56893.0,56892.0,0.03825008]
[1725594396322,2.73218682,56893.0,56892.0,0.03988208]
[1725594396752,2.38064982,56893.0,56892.0,0.03988208]
[1725594396981,2.330294,56893.0,56892.0,0.007632]
[1725594397199,2.331294,56893.0,56892.0,0.007632]
[1725594397838,2.35883506,56893.0,56892.0,0.007632]
[1725594398057,2.35783506,56893.0,56892.0,0.001632]
[1725594398518,2.41055157,56893.0,56892.0,0.001632]
[1725594398929,1.92781457,56893.0,56892.0,0.007632]
[1725594399150,1.39562,56893.0,56892.0,0.007632]
[1725594399389,0.195774,56893.0,56892.0,0.007632]
[1725594399625,0.195774,56893.0,56892.0,0.415503]
[1725594399846,0.193774,56893.0,56892.0,0.44275745]
[1725594400049,0.193774,56893.0,56892.0,0.26698645]
[1725594400050,0.001,56893.0,56892.0,0.26698645]
[1725594400481,0.987595,56893.0,56892.0,0.26698645]
[1725594400683,0.987595,56893.0,56892.0,0.44275745]
[1725594400907,0.988595,56893.0,56892.0,0.44275745]
[1725594401142,0.815669,56893.0,56892.0,0.44275745]
[1725594401349,0.814669,56893.0,56892.0,0.44275745]
[1725594401565,0.805276,56893.0,56892.0,0.45275745]
[1725594402210,0.804276,56893.0,56892.0,0.45275745]
[1725594402435,0.317977,56893.0,56892.0,0.46275745]
[1725594404661,0.317977,56893.0,56892.0,0.81430045]
[1725594405598,0.317977,56893.0,56892.0,0.46275745]
[1725594406038,0.317977,56893.0,56892.0,0.81430045]
[1725594407781,0.001,56893.0,56892.0,0.81430045]
[1725594408093,0.540197,56893.0,56892.0,0.81430045]
[1725594409734,0.469697,56893.0,56892.0,0.81430045]
[1725594409957,0.470513,56893.0,56892.0,0.81430045]
[1725594411152,0.102983,56893.0,56892.0,1.16584345]
[1725594412205,0.001816,56893.0,56892.0,1.51738645]
[1725594412866,0.001816,56893.0,56892.0,1.16584345]
[1725594423704,0.17575,56899.0,56896.0,0.175758]
[1725594423937,2.283885,56898.0,56896.0,0.175758]
[1725594424140,2.283885,56898.0,56897.0,0.02723692]
[1725594424989,1.189471,56898.0,56897.0,0.20899292]
[1725594425105,1.189471,56898.0,56897.0,0.65770492]
[1725594425106,0.484997,56898.0,56897.0,0.65770492]
[1725594425370,0.205801,56898.0,56897.0,0.65770492]
[1725594425521,0.820946,56900.0,56899.0,0.006]
[1725594425728,0.275744,56901.0,56900.0,0.006]
[1725594425951,0.1,56901.0,56900.0,0.181746]
[1725594426149,0.02755426,56901.0,56900.0,0.20897542]
[1725594426781,1.01780826,56901.0,56900.0,0.20897542]
[1725594427189,1.01780826,56901.0,56900.0,0.20997542]
[1725594427390,1.01780826,56901.0,56900.0,0.03423042]
[1725594427903,1.64993826,56901.0,56900.0,0.03423042]
[1725594428059,1.64993826,56901.0,56900.0,0.03523042]
[1725594428853,1.64993826,56901.0,56900.0,0.008]
[1725594429618,2.13392526,56901.0,56900.0,0.008]
[1725594429992,2.18665745,56901.0,56900.0,0.008]
[1725594430268,2.48541226,56901.0,56900.0,0.008]
[1725594430473,2.18665745,56901.0,56900.0,0.008]
[1725594430689,2.13392526,56901.0,56900.0,0.008]
[1725594433705,2.61844841,56901.0,56900.0,0.008]
[1725594433911,2.24059444,56901.0,56900.0,0.008]
[1725594434128,2.13392526,56901.0,56900.0,0.008]
[1725594434308,2.00142526,56901.0,56900.0,0.008]
[1725594434945,2.35372826,56901.0,56900.0,0.008]
[1725594435072,2.00224126,56901.0,56900.0,0.008]
[1725594435540,2.08137231,56901.0,56900.0,0.008]
[1725594436489,1.09111831,56901.0,56900.0,0.008]
[1725594436750,3.51315731,56901.0,56900.0,0.008]
[1725594438475,4.07742437,56901.0,56900.0,0.002]
[1725594438709,4.47623797,56901.0,56900.0,0.002]
[1725594438914,4.48223797,56901.0,56900.0,0.002]
[1725594439128,4.99197201,56901.0,56900.0,0.002]
[1725594439342,4.98997201,56901.0,56900.0,0.001]
[1725594439546,1.465979,56893.0,56892.0,0.001632]
[1725594439807,4.12109337,56893.0,56892.0,0.001632]
[1725594440009,4.47263037,56893.0,56892.0,0.001632]
[1725594440215,4.50019017,56893.0,56892.0,0.001632]
[1725594440667,4.47265159,56893.0,56892.0,0.001632]
[1725594441508,4.47265159,56893.0,56892.0,0.003632]
[1725594441714,4.3671148,56893.0,56892.0,0.003632]
[1725594442166,4.3671148,56893.0,56892.0,0.005632]
[1725594442876,4.39465951,56893.0,56892.0,0.005632]
[1725594443777,5.35517635,56893.0,56892.0,0.005632]
[1725594443990,5.35717635,56893.0,56892.0,0.005632]
[1725594444638,5.35717635,56893.0,56892.0,0.003632]
[1725594445062,5.37017635,56893.0,56892.0,0.004632]
[1725594445512,5.3888448,56893.0,56892.0,0.004632]
[1725594445733,5.54695837,56893.0,56892.0,0.002632]
[1725594446172,5.54895837,56893.0,56892.0,0.003632]
[1725594446383,5.7423818,56893.0,56892.0,1e-06]
[1725594446616,1.46258,56879.0,56878.0,0.468832]
[1725594446795,4.28892503,56879.0,56878.0,0.001632]
[1725594447427,4.31649104,56879.0,56878.0,0.001632]
[1725594447634,4.26380801,56879.0,56878.0,0.001632]
[1725594447985,4.26480801,56879.0,56878.0,0.001632]
[1725594448823,3.78718501,56879.0,56878.0,0.001632]
[1725594449073,3.68128501,56879.0,56878.0,0.001632]
[1725594449249,3.68228501,56879.0,56878.0,0.001632]
[1725594452936,3.50647401,56879.0,56878.0,0.001632]
[1725594453151,3.68228501,56879.0,56878.0,0.001632]
[1725594453590,3.70105207,56879.0,56878.0,0.001632]
[1725594455315,3.68228501,56879.0,56878.0,0.001632]
[1725594456270,3.68128501,56879.0,56878.0,0.001632]
[1725594456672,3.68028501,56879.0,56878.0,0.004632]
[1725594458027,3.68028501,56879.0,56878.0,0.006632]
[1725594458485,3.68110101,56879.0,56878.0,0.006632]
[1725594462581,3.78120101,56879.0,56878.0,0.006632]
[1725594467190,3.88120101,56879.0,56878.0,0.006632]
[1725594470280,3.78110101,56879.0,56878.0,0.006632]
[1725594471186,3.78110101,56879.0,56878.0,0.109032]
[1725594472275,3.78110101,56879.0,56878.0,0.006632]
[1725594473567,3.80865187,56879.0,56878.0,0.006632]
[1725594474422,3.78110101,56879.0,56878.0,0.006632]
[1725594474778,3.8086517,56879.0,56878.0,0.006632]
[1725594475203,3.78110101,56879.0,56878.0,0.006632]
[1725594476778,3.80865001,56879.0,56878.0,0.006632]
[1725594479074,3.80865001,56879.0,56878.0,0.232432]
[1725594479686,3.78110101,56879.0,56878.0,0.232432]
[1725594484692,3.83380291,56879.0,56878.0,0.232432]
[1725594485343,3.83380291,56879.0,56878.0,0.006632]
[1725594485546,3.78110101,56879.0,56878.0,0.006632]
[1725594486673,4.52752672,56879.0,56878.0,0.006632]
[1725594486904,4.16027196,56879.0,56878.0,0.006632]
[1725594487118,4.29220303,56879.0,56878.0,0.006632]
[1725594487622,4.16027196,56879.0,56878.0,0.003632]
[1725594488030,3.80964896,56879.0,56878.0,0.001632]
[1725594488260,3.94262656,56879.0,56878.0,0.001632]
[1725594488474,3.94062656,56879.0,56878.0,0.001632]
[1725594488687,3.80864896,56879.0,56878.0,0.001632]
[1725594488914,3.81464896,56879.0,56878.0,0.001632]
[1725594489973,3.11140296,56879.0,56878.0,0.111432]
[1725594490199,3.16308861,56879.0,56878.0,0.111432]
[1725594490412,3.16308861,56879.0,56878.0,0.233432]
[1725594490413,3.51471161,56879.0,56878.0,0.233432]
[1725594490631,3.43547801,56879.0,56878.0,0.233432]
[1725594490831,3.42947801,56879.0,56878.0,0.233432]
[1725594491665,3.42947801,56879.0,56878.0,0.235432]
[1725594492297,3.42947801,56879.0,56878.0,0.238432]
[1725594498555,3.50870816,56879.0,56878.0,0.238432]
[1725594500660,3.86033116,56879.0,56878.0,0.006632]
[1725594500909,3.85900376,56879.0,56878.0,0.006632]
[1725594501123,4.31552676,56879.0,56878.0,0.006632]
[1725594501597,4.31552676,56879.0,56878.0,0.001632]
[1725594501808,4.31552676,56879.0,56878.0,0.002632]
[1725594502031,4.31552676,56879.0,56878.0,0.001632]
[1725594502704,3.96390376,56879.0,56878.0,0.001632]
[1725594503187,3.91354794,56879.0,56878.0,0.001632]
[1725594504290,1.51862726,56879.0,56878.0,0.001632]
[1725594504518,3.94066626,56879.0,56878.0,0.001632]
[1725594504751,3.80864794,56879.0,56878.0,0.001632]
[1725594504968,3.91426474,56879.0,56878.0,0.001632]
[1725594505148,3.88671781,56879.0,56878.0,0.001632]
[1725594506138,3.42947801,56879.0,56878.0,0.235132]
[1725594506373,3.50869416,56879.0,56878.0,0.235132]
[1725594507500,3.50869416,56879.0,56878.0,0.239132]
[1725594507737,3.50869416,56879.0,56878.0,0.243132]
[1725594508659,3.50792116,56879.0,56878.0,0.243132]
[1725594509818,3.42870501,56879.0,56878.0,0.243132]
[1725594511608,3.50792116,56879.0,56878.0,0.243132]
[1725594512343,3.5079084,56879.0,56878.0,0.243132]
[1725594513016,3.48150919,56879.0,56878.0,0.243132]
[1725594515036,3.42870501,56879.0,56878.0,0.243132]
[1725594515688,3.50790512,56879.0,56878.0,0.243132]
[1725594516146,3.42870501,56879.0,56878.0,0.243132]
[1725594516375,3.50791095,56879.0,56878.0,0.243132]
[1725594516605,3.42870501,56879.0,56878.0,0.243132]
[1725594516828,3.42947801,56879.0,56878.0,0.243132]
[1725594517552,3.78110101,56879.0,56878.0,0.009632]
[1725594518273,3.86031042,56879.0,56878.0,0.009632]
[1725594518756,3.96121042,56879.0,56878.0,0.009632]
[1725594519008,3.88200101,56879.0,56878.0,0.009632]
[1725594521262,3.90062272,56879.0,56878.0,0.009632]
[1725594523752,4.03261331,56879.0,56878.0,0.009632]
[1725594523980,3.90062272,56879.0,56878.0,0.009632]
[1725594524452,5.19525851,56879.0,56878.0,0.009632]
[1725594524741,1.812097,56872.0,56871.0,1e-06]
[1725594525004,4.61335427,56872.0,56871.0,1e-06]
[1725594525249,5.15837609,56872.0,56871.0,1e-06]
[1725594525484,5.18595059,56872.0,56871.0,1e-06]
[1725594525702,5.22296658,56872.0,56871.0,1e-06]
[1725594525911,5.80296658,56872.0,56871.0,1e-06]
[1725594526455,5.76595059,56872.0,56871.0,1e-06]
[1725594527072,5.58811759,56872.0,56871.0,1e-06]
[1725594527344,5.58811759,56872.0,56871.0,0.002001]
[1725594527564,5.58811759,56872.0,56871.0,1e-06]
[1725594527790,5.77795059,56872.0,56871.0,0.001001]
[1725594528024,5.79195059,56872.0,56871.0,0.001001]
[1725594528259,5.77795059,56872.0,56871.0,1e-06]
[1725594528690,5.76395059,56872.0,56871.0,1e-06]
[1725594529153,5.77795059,56872.0,56871.0,1e-06]
[1725594529587,5.79195059,56872.0,56871.0,1e-06]
[1725594531429,5.81039459,56872.0,56871.0,1e-06]
[1725594532649,5.81074031,56872.0,56871.0,1e-06]
[1725594532874,5.8477563,56872.0,56871.0,1e-06]
[1725594536078,5.7324865,56872.0,56871.0,1e-06]
[1725594536327,5.83758262,56872.0,56871.0,1e-06]
[1725594536966,5.7600453,56872.0,56871.0,1e-06]
[1725594538371,5.89139613,56872.0,56871.0,1e-06]
[1725594538831,5.7600453,56872.0,56871.0,1e-06]
[1725594539304,5.89220657,56872.0,56871.0,1e-06]
[1725594540079,5.91060895,56872.0,56871.0,1e-06]
[1725594541265,5.91060724,56872.0,56871.0,1e-06]
[1725594543038,5.96096306,56872.0,56871.0,1e-06]
[1725594543266,7.14094404,56872.0,56871.0,1e-06]
[1725594543499,7.00960048,56872.0,56871.0,1e-06]
[1725594545328,6.95924466,56872.0,56871.0,1e-06]
[1725594545544,7.00960048,56872.0,56871.0,1e-06]
[1725594545777,7.36010048,56872.0,56871.0,1e-06]
[1725594546195,7.56221051,56872.0,56871.0,1e-06]
[1725594546479,7.56216928,56872.0,56871.0,1e-06]
[1725594546669,7.40461483,56872.0,56871.0,1e-06]
[1725594546934,7.40461483,56872.0,56856.0,0.00164]
[1725594546935,0.531638,56857.0,56856.0,0.00164]
[1725594547118,1.686915,56857.0,56856.0,0.00164]
[1725594547365,4.460713,56857.0,56856.0,0.00164]
[1725594547597,4.51129366,56857.0,56856.0,0.00164]
[1725594548267,4.64235932,56857.0,56856.0,0.00164]
[1725594548483,4.7410827,56857.0,56856.0,0.00164]
[1725594548692,4.66235932,56857.0,56856.0,0.00164]
[1725594548910,4.55685932,56857.0,56856.0,0.00164]
[1725594549153,4.58578011,56857.0,56856.0,0.00164]
[1725594549359,4.55249615,56857.0,56856.0,0.00164]
[1725594549793,4.55349615,56857.0,56856.0,0.00164]
[1725594550494,4.55249615,56857.0,56856.0,0.00164]
[1725594550735,4.54649615,56857.0,56856.0,0.00164]
[1725594550957,4.20173715,56857.0,56856.0,0.00164]
[1725594551192,4.19173715,56857.0,56856.0,0.00164]
[1725594551409,4.18173715,56857.0,56856.0,0.00164]
[1725594551623,4.19173715,56857.0,56856.0,0.00164]
[1725594555293,4.2377028,56857.0,56856.0,0.00164]
[1725594555750,4.2277028,56857.0,56856.0,0.00164]
[1725594555969,4.2377028,56857.0,56856.0,0.00164]
[1725594556883,4.23790076,56857.0,56856.0,0.00164]
[1725594558448,4.31663934,56857.0,56856.0,0.00164]
[1725594558661,4.23790076,56857.0,56856.0,0.00164]
[1725594559135,4.31663934,56857.0,56856.0,0.00164]
[1725594559367,4.23790076,56857.0,56856.0,0.00164]
[1725594559626,4.68220038,56857.0,56856.0,0.00164]
[1725594559833,4.6034618,56857.0,56856.0,0.00164]
[1725594560059,4.70844658,56857.0,56856.0,0.00164]
[1725594560294,5.00557662,56857.0,56856.0,0.00164]
[1725594560771,5.00557662,56857.0,56847.0,0.0985]
[1725594560772,0.175907,56848.0,56847.0,0.0985]
[1725594560989,3.80395427,56848.0,56847.0,0.0985]
[1725594561225,0.879567,56846.0,56845.0,0.13324]
[1725594561439,3.42916927,56846.0,56845.0,0.13324]
[1725594561666,4.13282327,56846.0,56845.0,0.13324]
[1725594562364,4.15582327,56846.0,56845.0,0.13324]
[1725594562577,4.65582327,56846.0,56845.0,0.13324]
[1725594563516,5.18690609,56846.0,56845.0,0.00164]
[1725594563752,5.13755027,56846.0,56845.0,0.00164]
[1725594563992,5.18690609,56846.0,56845.0,0.00164]
[1725594564222,5.18790609,56846.0,56845.0,0.00164]
[1725594565547,5.20679263,56846.0,56845.0,0.00164]
[1725594566084,5.20679263,56846.0,56837.0,0.00164]
[1725594566085,2.811116,56840.0,56837.0,0.00164]
[1725594566299,1.041815,56838.0,56837.0,2e-07]
[1725594566517,1.86196085,56838.0,56837.0,2e-07]
[1725594566731,2.31383785,56838.0,56837.0,2e-07]
[1725594567438,2.34011849,56838.0,56837.0,2e-07]
[1725594567671,1.88313227,56838.0,56837.0,2e-07]
[1725594567907,1.76354537,56838.0,56837.0,2e-07]
[1725594568127,1.78454537,56838.0,56837.0,2e-07]
[1725594568354,1.81192008,56838.0,56837.0,2e-07]
[1725594568595,1.81297715,56838.0,56837.0,2e-07]
[1725594568827,1.78801126,56838.0,56837.0,2e-07]
[1725594569045,1.83597416,56838.0,56837.0,2e-07]
[1725594569273,1.78343781,56838.0,56837.0,2e-07]
[1725594569494,1.83596966,56838.0,56837.0,2e-07]
[1725594570025,1.77343781,56838.0,56837.0,2e-07]
[1725594570238,1.99551976,56838.0,56837.0,2e-07]
[1725594570471,2.25759204,56838.0,56837.0,2e-07]
[1725594570687,2.35336503,56838.0,56837.0,2e-07]
[1725594570935,2.27459204,56838.0,56837.0,2e-07]
[1725594571212,1.607559,56834.0,56833.0,0.0012802]
[1725594571405,2.629963,56834.0,56833.0,0.0012802]
[1725594571617,5.20755731,56834.0,56833.0,0.0012802]
[1725594571827,5.20755731,56834.0,56825.0,0.4634802]
[1725594571828,2.087779,56826.0,56825.0,0.4634802]
[1725594572055,0.87994,56822.0,56821.0,0.12754]
[1725594572272,1.687892,56822.0,56821.0,0.12754]
[1725594572502,1.710892,56822.0,56821.0,0.12754]
[1725594572737,1.73848675,56822.0,56821.0,0.12754]
[1725594572981,4.15652575,56822.0,56821.0,0.12754]
[1725594574097,4.16052575,56822.0,56821.0,0.12754]
[1725594574535,4.16552575,56822.0,56821.0,0.12754]
[1725594576798,4.23612675,56822.0,56821.0,0.12754]
[1725594577022,3.86115075,56822.0,56821.0,0.12754]
[1725594577453,3.87993465,56822.0,56821.0,0.12754]
[1725594579486,3.90293465,56822.0,56821.0,0.12754]
[1725594581465,4.25491065,56822.0,56821.0,0.12754]
[1725594581730,4.25491065,56822.0,56821.0,0.00164]
[1725594581731,4.66724247,56822.0,56821.0,0.00164]
[1725594581953,4.31526647,56822.0,56821.0,0.00164]
[1725594582408,3.52795865,56822.0,56821.0,0.22574]
[1725594582640,1.20930175,56822.0,56821.0,0.23174]
[1725594583107,0.422518,56829.0,56821.0,0.23174]
[1725594583108,0.351914,56832.0,56831.0,0.008]
[1725594583326,3.233319,56832.0,56831.0,0.2301]
[1725594583542,3.233319,56832.0,56831.0,0.2281]
[1725594583755,2.38112282,56832.0,56831.0,0.2241]
[1725594584006,1.77483182,56832.0,56831.0,0.2221]
[1725594584215,2.12674582,56832.0,56831.0,0.2221]
[1725594584446,2.12774582,56832.0,56831.0,0.2221]
[1725594585131,2.22974582,56832.0,56831.0,0.2221]
[1725594585390,2.22774582,56832.0,56831.0,0.2221]
[1725594585835,2.22674582,56832.0,56831.0,0.2221]
[1725594586687,2.22674582,56832.0,56826.0,0.1227]
[1725594586688,1.231807,56827.0,56826.0,0.1227]
[1725594587130,1.231807,56827.0,56826.0,0.2241]
[1725594587131,0.979862,56827.0,56826.0,0.2241]
[1725594587415,0.979862,56827.0,56826.0,0.2261]
[1725594587416,0.275972,56827.0,56826.0,0.2261]
[1725594587599,1.57127,56827.0,56826.0,0.26776308]
[1725594587830,1.234364,56827.0,56826.0,0.26776308]
[1725594588082,0.82498,56827.0,56826.0,0.26976308]
[1725594588297,0.82498,56827.0,56826.0,0.26776308]
[1725594588737,0.8896312,56827.0,56826.0,0.27276308]
[1725594588946,0.8896312,56827.0,56826.0,0.27576308]
[1725594589630,0.8896312,56827.0,56826.0,0.27276308]
[1725594589846,0.8906312,56827.0,56826.0,0.27976308]
[1725594590676,1.0666032,56827.0,56826.0,0.27976308]
[1725594591104,1.4185482,56827.0,56826.0,0.27976308]
[1725594591331,1.4185482,56827.0,56826.0,0.27776308]
[1725594591573,1.4185482,56827.0,56826.0,0.27976308]
[1725594593234,1.0666032,56827.0,56826.0,0.27976308]
[1725594594325,1.4185482,56827.0,56826.0,0.27976308]
[1725594594564,1.7704932,56827.0,56826.0,0.2381]
[1725594596999,1.7704932,56827.0,56826.0,0.2361]
[1725594597218,1.7704932,56827.0,56826.0,0.2341]
[1725594597219,2.1224382,56827.0,56826.0,0.2341]
[1725594597445,2.1224382,56827.0,56826.0,0.1347]
[1725594598490,2.1224382,56827.0,56826.0,0.136334]
[1725594598970,2.14164414,56827.0,56826.0,0.136334]
[1725594600545,2.1224382,56827.0,56826.0,0.136334]
[1725594602320,2.1224382,56827.0,56826.0,0.232034]
[1725594602536,1.7704932,56827.0,56826.0,0.232034]
[1725594602762,1.7704932,56827.0,56826.0,0.234034]
[1725594602989,1.4185482,56827.0,56826.0,0.234034]
[1725594603197,0.6297052,56827.0,56826.0,0.26873436]
[1725594603853,0.6297052,56827.0,56826.0,0.27073436]
[1725594603854,1.5811362,56827.0,56826.0,0.27073436]
[1725594604050,1.0532192,56827.0,56826.0,0.27073436]
[1725594604280,1.0532192,56827.0,56826.0,1.50608169]
[1725594604281,0.002,56827.0,56826.0,1.50608169]
[1725594604537,0.002,56827.0,56826.0,1.50256236]
[1725594604797,0.002,56827.0,56826.0,1.15061136]
[1725594605053,0.002,56827.0,56826.0,1.50256236]
[1725594605284,0.001,56827.0,56826.0,1.14361136]
[1725594605526,0.002,56827.0,56826.0,0.79866036]
[1725594605767,0.002,56827.0,56826.0,0.44670936]
[1725594605988,0.002,56827.0,56826.0,0.79166036]
[1725594605989,0.001,56827.0,56826.0,0.79166036]
[1725594606465,0.001,56827.0,56826.0,0.79366036]
[1725594606655,0.608671,56827.0,56826.0,0.79366036]